bitfinex-derivatives/quotes_SOLF0:USTF0_20250901
["timestamp","ask_amount","ask_price","bid_price","bid_amount"]
[1756710615520,3.59142322,198.81,198.79,1.79347707]
[1756710615721,124.44,198.83,198.79,1.79347707]
[1756710615925,3.59192013,198.82,198.79,1.79347707]
[1756710616123,3.59192013,198.81,198.79,1.79347707]
[1756710616330,124.44,198.83,198.79,1.79347707]
[1756710616530,3.59293212,198.82,198.79,1.79347707]
[1756710616725,3.59293212,198.81,198.79,1.79347707]
[1756710616926,124.44,198.83,198.79,1.79347707]
[1756710617122,3.5926538,198.82,198.79,1.79347707]
[1756710617322,3.5926538,198.81,198.79,1.79347707]
[1756710617531,124.44,198.83,198.79,1.79347707]
[1756710617728,3.59316928,198.82,198.79,1.79347707]
[1756710618030,3.59316928,198.81,198.79,1.79347707]
[1756710618232,124.44,198.83,198.79,1.79347707]
[1756710618531,3.59361642,198.82,198.79,1.79347707]
[1756710618731,3.59361642,198.81,198.79,1.79347707]
[1756710618934,124.44,198.83,198.79,1.79347707]
[1756710619133,3.59361537,198.82,198.73,2.25805748]
[1756710619335,3.59361537,198.81,198.79,1.79347707]
[1756710619533,3.59361537,198.8,198.72,2.25805748]
[1756710619736,124.44,198.83,198.78,1.79347707]
[1756710619936,3.5929464,198.82,198.78,1.79347707]
[1756710620134,3.5929464,198.81,198.78,1.79347707]
[1756710620435,3.5929464,198.8,198.78,1.79347707]
[1756710620734,124.44,198.83,198.78,1.79347707]
[1756710620933,3.59376968,198.82,198.78,1.79347707]
[1756710621134,3.59376968,198.81,198.78,1.79347707]
[1756710621334,3.59376968,198.8,198.78,1.79347707]
[1756710621535,124.44,198.83,198.78,1.79347707]
[1756710621739,3.59532817,198.82,198.78,1.79347707]
[1756710622036,3.59532817,198.81,198.78,1.79347707]
[1756710622231,3.59532817,198.8,198.78,1.79347707]
[1756710622534,3.59532817,198.79,198.78,1.79347707]
[1756710622735,3.59532817,198.82,198.72,2.25805748]
[1756710622934,3.59532817,198.81,198.78,1.79347707]
[1756710623135,3.59532817,198.8,198.78,1.79347707]
[1756710623337,3.59532817,198.79,198.78,1.79347707]
[1756710623737,3.59532817,198.82,198.78,1.79347707]
[1756710623932,3.59532817,198.81,198.78,1.79347707]
[1756710624237,3.59532817,198.8,198.78,1.79347707]
[1756710624435,3.59532817,198.79,198.78,1.79347707]
[1756710624836,3.59532817,198.82,198.78,1.79347707]
[1756710625037,3.59532817,198.81,198.78,1.79347707]
[1756710625233,3.59532817,198.8,198.78,1.79347707]
[1756710625533,3.59532817,198.79,198.78,1.79347707]
[1756710625733,124.44,198.83,198.79,1.79347707]
[1756710625936,3.59798936,198.82,198.79,1.79347707]
[1756710626134,3.59798936,198.81,198.72,2.25805748]
[1756710626337,3.59798936,198.8,198.79,1.79347707]
[1756710626534,3.59798936,198.82,198.78,1.79347707]
[1756710626733,9.68962852,198.81,198.67,2.25805748]
[1756710626932,7.43157104,198.8,198.74,1.79347707]
[1756710627139,2.25805748,198.75,198.63,2.25805748]
[1756710627337,3.59798936,198.74,198.72,1.79347707]
[1756710627536,3.59798936,198.73,198.72,1.79347707]
[1756710627739,3.59798936,198.73,198.63,2.25805748]
[1756710627938,124.44,198.76,198.72,1.79347707]
[1756710628140,3.59751297,198.75,198.72,1.79347707]
[1756710628343,3.59751297,198.74,198.66,2.25805748]
[1756710628544,3.59751297,198.73,198.72,1.79347707]
[1756710628938,3.59751297,198.73,198.66,2.25805748]
[1756710629248,124.44,198.77,198.72,1.79347707]
[1756710629442,3.59748724,198.76,198.72,1.79347707]
[1756710629739,3.59748724,198.75,198.72,1.79347707]
[1756710629940,3.59748724,198.74,198.72,1.79347707]
[1756710630140,3.59748724,198.73,198.72,1.79347707]
[1756710631544,3.59748724,198.73,198.62,2.25805748]
[1756710631746,3.59748724,198.72,198.69,1.79347707]
[1756710631941,3.59748724,198.71,198.69,1.79347707]
[1756710632243,3.59748724,198.71,198.62,2.25805748]
[1756710632244,3.59748724,198.7,198.62,2.25805748]
[1756710632440,2.25805748,198.74,198.69,1.79347707]
[1756710632646,3.59536261,198.73,198.69,1.79347707]
[1756710632847,3.59536261,198.72,198.62,2.25805748]
[1756710633140,3.59536261,198.71,198.69,1.79347707]
[1756710633336,3.59536261,198.7,198.69,1.79347707]
[1756710633540,3.59536261,198.7,198.62,2.25805748]
[1756710633848,2.25805748,198.74,198.68,1.79347707]
[1756710634147,3.59298635,198.73,198.68,1.79347707]
[1756710634347,3.59298635,198.72,198.62,2.25805748]
[1756710634547,3.59298635,198.71,198.68,1.79347707]
[1756710634748,3.59298635,198.7,198.68,1.79347707]
[1756710634948,3.59081974,198.69,198.62,2.25805748]
[1756710635248,2.25805748,198.71,198.57,4.532]
[1756710635446,3.58951398,198.7,198.59,2.25805748]
[1756710635652,3.58951398,198.69,198.65,1.79347707]
[1756710635951,3.58951398,198.68,198.64,1.79347707]
[1756710636153,3.58951398,198.67,198.59,2.25805748]
[1756710636341,2.25805748,198.68,198.63,1.79347707]
[1756710636549,3.5875798,198.67,198.63,1.79347707]
[1756710636852,2.25805748,198.68,198.56,2.25805748]
[1756710637052,3.58731233,198.67,198.62,1.79347707]
[1756710637254,2.25805748,198.68,198.62,1.79347707]
[1756710637453,3.58536745,198.67,198.62,1.79347707]
[1756710637653,2.25805748,198.68,198.53,338.1]
[1756710637855,3.58521227,198.67,198.62,1.79347707]
[1756710638054,3.58521227,198.66,198.62,1.79347707]
[1756710638256,2.25805748,198.68,198.55,2.25805748]
[1756710638455,3.58300354,198.67,198.62,1.79347707]
[1756710638657,3.58300354,198.66,198.62,1.79347707]
[1756710638856,42.03805748,198.68,198.55,2.25805748]
[1756710639058,3.58304638,198.67,198.62,1.79347707]
[1756710639254,42.03805748,198.68,198.61,1.79347707]
[1756710639453,3.58140107,198.67,198.61,1.79347707]
[1756710639652,3.58140107,198.66,198.61,1.79347707]
[1756710639848,42.03805748,198.68,198.61,1.79347707]
[1756710640048,3.57864803,198.67,198.61,1.79347707]
[1756710640258,42.03805748,198.68,198.61,1.79347707]
[1756710640457,3.57653111,198.67,198.61,1.79347707]
[1756710640658,42.03805748,198.68,198.61,1.79347707]
[1756710640953,3.57652648,198.67,198.61,1.79347707]
[1756710641154,3.57652648,198.66,198.61,1.79347707]
[1756710641458,64.28,198.68,198.62,1.79347707]
[1756710641753,3.57479054,198.67,198.62,1.79347707]
[1756710641958,64.28,198.68,198.62,1.79347707]
[1756710642160,3.57492681,198.67,198.62,1.79347707]
[1756710642358,64.28,198.68,198.62,1.79347707]
[1756710642560,3.57343647,198.67,198.62,1.79347707]
[1756710642853,2.25805748,198.66,198.53,338.1]
[1756710643159,2.25805748,198.66,198.53,340.35805748]
[1756710643358,2.25805748,198.66,198.6,1.79347707]
[1756710644860,2.25805748,198.66,198.61,1.79347707]
[1756710645061,2.25805748,198.66,198.53,340.35805748]
[1756710645263,2.25805748,198.66,198.61,1.79347707]
[1756710645664,2.25805748,198.66,198.53,340.35805748]
[1756710645864,2.25805748,198.66,198.56,2.25805748]
[1756710646161,2.25805748,198.66,198.62,1.79347707]
[1756710646559,2.25805748,198.66,198.56,2.25805748]
[1756710646754,34.03805748,198.69,198.56,2.25805748]
[1756710646960,3.57150671,198.68,198.63,1.79347707]
[1756710647265,27.37805748,198.69,198.64,1.79347707]
[1756710647765,27.37805748,198.69,198.56,2.25805748]
[1756710647963,27.37805748,198.69,198.64,1.79347707]
[1756710648262,27.37805748,198.69,198.56,2.25805748]
[1756710648454,27.37805748,198.69,198.64,1.79347707]
[1756710648660,27.37805748,198.69,198.56,2.25805748]
[1756710648860,27.37805748,198.69,198.64,1.79347707]
[1756710649355,3.57124154,198.68,198.56,2.25805748]
[1756710649565,27.37805748,198.69,198.64,1.79347707]
[1756710649766,3.57124154,198.68,198.64,1.79347707]
[1756710650064,25.12,198.69,198.56,2.25805748]
[1756710650266,5.83005311,198.68,198.64,1.79347707]
[1756710650565,2.25805748,198.68,198.55,2.25805748]
[1756710650864,2.25805748,198.65,198.63,1.79347707]
[1756710651062,2.25805748,198.65,198.62,1.79347707]
[1756710651469,2.25805748,198.65,198.55,2.25805748]
[1756710651663,2.25805748,198.65,198.61,1.79347707]
[1756710652269,2.25805748,198.68,198.55,2.25805748]
[1756710652468,3.57108791,198.67,198.55,2.25805748]
[1756710652668,2.25805748,198.68,198.55,6.79035748]
[1756710652873,3.57108725,198.67,198.55,6.79035748]
[1756710653168,2.25805748,198.68,198.63,1.79347707]
[1756710653367,3.57173464,198.67,198.63,1.79347707]
[1756710653567,2.25805748,198.68,198.63,1.79347707]
[1756710653767,3.57188802,198.67,198.63,1.79347707]
[1756710654066,2.25805748,198.68,198.63,1.79347707]
[1756710654269,3.57188802,198.67,198.63,1.79347707]
[1756710654572,2.25805748,198.68,198.63,1.79347707]
[1756710654768,3.57209805,198.67,198.55,2.25805748]
[1756710654961,2.25805748,198.68,198.63,1.79347707]
[1756710655161,3.57209738,198.67,198.63,1.79347707]
[1756710655371,2.25805748,198.68,198.55,2.25805748]
[1756710655372,2.25805748,198.65,198.55,2.25805748]
[1756710655570,2.25805748,198.65,198.61,1.79347707]
[1756710655772,2.25805748,198.65,198.6,1.79347707]
[1756710656772,2.25805748,198.65,198.61,1.79347707]
[1756710657173,2.25805748,198.65,198.53,4.5328]
[1756710657377,2.25805748,198.65,198.61,1.79347707]
[1756710657872,2.25805748,198.65,198.53,4.5328]
[1756710658071,2.25805748,198.65,198.61,1.79347707]
[1756710658275,2.25805748,198.65,198.53,4.5328]
[1756710658470,2.25805748,198.68,198.61,1.79347707]
[1756710658671,2.25805748,198.65,198.61,1.79347707]
[1756710658970,2.25805748,198.65,198.53,4.5328]
[1756710659167,2.25805748,198.65,198.61,1.79347707]
[1756710659376,2.25805748,198.65,198.6,1.79347707]
[1756710659574,30.73805748,198.68,198.6,1.79347707]
[1756710659875,3.5751897,198.67,198.61,1.79347707]
[1756710660082,3.5751897,198.66,198.61,1.79347707]
[1756710660275,3.5751897,198.65,198.55,2.25805748]
[1756710660577,3.5751897,198.64,198.61,1.79347707]
[1756710660777,30.73805748,198.68,198.61,1.79347707]
[1756710660971,3.57706235,198.67,198.55,2.25805748]
[1756710661174,3.57706235,198.66,198.49,109.06670937]
[1756710661371,3.57706235,198.66,198.59,1.79347707]
[1756710661876,3.57706235,198.66,198.54,2.25805748]
[1756710662077,3.57706235,198.66,198.59,1.79347707]
[1756710662273,3.57706235,198.66,198.57,1.79347707]
[1756710662675,2.25805748,198.63,198.58,1.79347707]
[1756710662877,3.57706235,198.62,198.58,1.79347707]
[1756710663072,3.57706235,198.62,198.52,2.25805748]
[1756710663279,3.57706235,198.62,198.58,1.79347707]
[1756710663478,3.57706235,198.62,198.52,2.25805748]
[1756710663678,3.57706235,198.62,198.58,1.79347707]
[1756710663874,3.57706235,198.62,198.52,2.25805748]
[1756710664178,59.98,198.65,198.59,1.79347707]
[1756710664379,3.58123954,198.64,198.59,1.79347707]
[1756710664581,3.58123954,198.63,198.55,2.25805748]
[1756710664779,3.58123954,198.62,198.59,1.79347707]
[1756710664982,84.16,198.66,198.59,1.79347707]
[1756710665280,3.58123954,198.65,198.59,1.79347707]
[1756710665476,3.58123954,198.64,198.59,1.79347707]
[1756710665673,3.58123954,198.63,198.59,1.79347707]
[1756710665877,3.58123954,198.62,198.59,1.79347707]
[1756710666078,2.25805748,198.65,198.59,1.79347707]
[1756710666377,3.58290416,198.64,198.59,1.79347707]
[1756710666575,3.58290416,198.63,198.59,1.79347707]
[1756710666771,3.58290416,198.62,198.59,1.79347707]
[1756710666970,2.25805748,198.65,198.59,1.79347707]
[1756710667173,3.5840161,198.64,198.59,1.79347707]
[1756710667481,3.5840161,198.63,198.53,2.25805748]
[1756710667676,3.5840161,198.62,198.58,1.79347707]
[1756710667878,28.65805748,198.65,198.58,1.79347707]
[1756710668181,3.58558764,198.64,198.58,1.79347707]
[1756710668480,3.58558764,198.63,198.58,1.79347707]
[1756710668680,3.58558764,198.62,198.58,1.79347707]
[1756710668881,3.58558764,198.61,198.58,1.79347707]
[1756710669075,28.65805748,198.65,198.58,1.79347707]
[1756710669272,3.58672671,198.64,198.58,1.79347707]
[1756710669477,3.58672671,198.63,198.58,1.79347707]
[1756710669681,3.58672671,198.62,198.59,1.79347707]
[1756710669878,3.58672671,198.61,198.59,1.79347707]
[1756710670081,3.58672671,198.6,198.53,2.25805748]
[1756710670373,28.65805748,198.65,198.59,1.79347707]
[1756710670575,2.25805748,198.62,198.5,2.25805748]
[1756710670782,3.59817499,198.61,198.58,1.79347707]
[1756710671081,3.59817499,198.6,198.58,1.79347707]
[1756710671282,3.59817499,198.59,198.5,2.25805748]
[1756710671477,2.25805748,198.62,198.58,1.79347707]
[1756710671681,3.60100267,198.61,198.57,1.79347707]
[1756710671883,3.60100267,198.6,198.57,1.79347707]
[1756710672078,3.60100267,198.59,198.57,1.79347707]
[1756710672284,2.25805748,198.62,198.57,1.79347707]
[1756710672583,3.6016476,198.61,198.57,1.79347707]
[1756710672785,3.6016476,198.6,198.57,1.79347707]
[1756710672979,3.6016476,198.59,198.57,1.79347707]
[1756710673283,3.6016476,198.58,198.5,2.25805748]
[1756710673482,52.45805748,198.62,198.5,2.25805748]
[1756710673483,3.6016476,198.57,198.56,1.79347707]
[1756710673883,11.42,198.63,198.56,1.79347707]
[1756710674080,3.6011585,198.62,198.58,1.79347707]
[1756710674381,3.6011585,198.61,198.58,1.79347707]
[1756710674581,3.6011585,198.6,198.58,1.79347707]
[1756710674783,113.34,198.64,198.59,1.79347707]
[1756710674982,7.4399728,198.63,198.59,1.79347707]
[1756710675177,3.60236836,198.62,198.53,2.25805748]
[1756710675379,3.60236836,198.61,198.59,1.79347707]
[1756710675583,3.60236836,198.6,198.59,1.79347707]
[1756710675775,3.60236836,198.63,198.53,2.25805748]
[1756710675975,3.60236836,198.62,198.59,1.79347707]
[1756710676183,3.60236836,198.61,198.59,1.79347707]
[1756710676379,3.60236836,198.6,198.52,2.25805748]
[1756710676580,113.34,198.64,198.59,1.79347707]
[1756710676777,7.44527572,198.63,198.58,1.79347707]
[1756710676984,3.60495169,198.62,198.58,1.79347707]
[1756710677288,3.60495169,198.61,198.58,1.79347707]
[1756710677482,3.60495169,198.6,198.58,1.79347707]
[1756710677683,3.60495169,198.59,198.52,2.25805748]
[1756710677884,3.60495169,198.58,198.52,2.25805748]
[1756710678077,113.34,198.64,198.59,1.79347707]
[1756710678283,7.447679,198.63,198.59,1.79347707]
[1756710678488,7.44762331,198.62,198.52,2.25805748]
[1756710678686,3.60552785,198.61,198.52,2.25805748]
[1756710678885,3.60552785,198.6,198.58,1.79347707]
[1756710679082,3.60552785,198.59,198.58,1.79347707]
[1756710679279,3.60552785,198.59,198.48,2.25805748]
[1756710679483,3.60552785,198.58,198.56,1.79347707]
[1756710679689,3.60552785,198.57,198.56,1.79347707]
[1756710680083,3.60552785,198.61,198.56,1.79347707]
[1756710680288,7.44943603,198.6,198.56,1.79347707]
[1756710680490,3.60552785,198.59,198.56,1.79347707]
[1756710680690,3.60552785,198.58,198.56,1.79347707]
[1756710680895,3.60552785,198.57,198.56,1.79347707]
[1756710681191,3.60552785,198.6,198.56,1.79347707]
[1756710681487,3.60552785,198.59,198.56,1.79347707]
[1756710681691,3.60552785,198.58,198.57,1.79347707]
[1756710681984,3.60552785,198.6,198.57,1.79347707]
[1756710682180,3.60552785,198.59,198.48,2.25805748]
[1756710682383,3.60552785,198.58,198.57,1.79347707]
[1756710682581,2.25805748,198.64,198.51,2.25805748]
[1756710682891,25.82755317,198.63,198.58,1.79347707]
[1756710683089,7.44755317,198.62,198.58,1.79347707]
[1756710683287,3.60552785,198.61,198.58,1.79347707]
[1756710683487,3.60552785,198.6,198.58,1.79347707]
[1756710683786,3.60552785,198.59,198.51,2.25805748]
[1756710684091,3.60648506,198.58,198.51,2.25805748]
[1756710684391,3.60648506,198.57,198.51,2.25805748]
[1756710684591,3.60648506,198.56,198.51,2.25805748]
[1756710684892,8.46,198.64,198.59,1.79347707]
[1756710685090,7.44960894,198.63,198.59,1.79347707]
[1756710685290,3.60699033,198.62,198.59,1.79347707]
[1756710685488,3.60699033,198.61,198.59,1.79347707]
[1756710685791,8.46,198.64,198.59,1.79347707]
[1756710685792,3.60699033,198.6,198.59,1.79347707]
[1756710686886,3.60699033,198.62,198.59,1.79347707]
[1756710687089,3.60699033,198.61,198.55,2.25805748]
[1756710687292,3.60699033,198.6,198.55,2.25805748]
[1756710687483,27.17805748,198.67,198.61,1.79347707]
[1756710687687,7.45047902,198.66,198.62,1.79347707]
[1756710687989,7.45047902,198.65,198.62,1.79347707]
[1756710688190,3.60740814,198.64,198.55,2.25805748]
[1756710688486,3.60740814,198.63,198.62,1.79347707]
[1756710690693,3.60740814,198.63,198.5,4.5335]
[1756710690894,3.60740814,198.62,198.61,1.79347707]
[1756710691289,3.60740814,198.62,198.54,2.25805748]
[1756710691490,2.25805748,198.67,198.61,1.79347707]
[1756710691690,7.41883608,198.66,198.61,1.79347707]
[1756710691890,7.41883608,198.65,198.54,2.25805748]
[1756710692093,7.41883608,198.64,198.61,1.79347707]
[1756710692289,3.60737187,198.63,198.61,1.79347707]
[1756710692489,3.60737187,198.62,198.54,2.25805748]
[1756710692693,2.25805748,198.67,198.61,1.79347707]
[1756710692997,9.67746378,198.66,198.61,1.79347707]
[1756710693290,7.4194063,198.65,198.54,2.25805748]
[1756710693495,2.25805748,198.66,198.54,2.25805748]
[1756710693496,7.4194063,198.64,198.61,1.79347707]
[1756710693693,3.60764692,198.63,198.61,1.79347707]
[1756710693894,3.60764692,198.62,198.54,2.25805748]
[1756710694092,2.25805748,198.66,198.61,1.79347707]
[1756710694398,7.41895091,198.65,198.61,1.79347707]
[1756710694593,7.41895091,198.64,198.54,2.25805748]
[1756710694794,3.6072749,198.63,198.61,1.79347707]
[1756710694994,3.6072749,198.62,198.61,1.79347707]
[1756710695192,3.6072749,198.62,198.54,2.25805748]
[1756710695491,2.25805748,198.66,198.61,1.79347707]
[1756710695696,7.42045255,198.65,198.61,1.79347707]
[1756710695994,7.42045255,198.64,198.62,1.79347707]
[1756710696192,3.6081522,198.63,198.62,1.79347707]
[1756710705698,7.44625822,198.63,198.55,2.25805748]
[1756710706003,7.44615652,198.62,198.53,2.25805748]
[1756710706200,3.6081522,198.61,198.6,1.79347707]
[1756710706400,3.6081522,198.61,198.57,1.79347707]
[1756710706597,3.6081522,198.6,198.57,1.79347707]
[1756710706797,3.6081522,198.59,198.5,2.25805748]
[1756710706998,3.6081522,198.58,198.57,1.79347707]
[1756710707199,3.6081522,198.58,198.5,2.25805748]
[1756710707403,3.6081522,198.57,198.5,2.25805748]
[1756710707604,3.6081522,198.56,198.5,2.25805748]
[1756710707804,36.34,198.63,198.59,1.79347707]
[1756710708102,7.43581758,198.62,198.59,1.79347707]
[1756710708302,3.60083546,198.61,198.6,1.79347707]
[1756710708496,3.60083546,198.61,198.56,2.25805748]
[1756710708702,3.60083546,198.6,198.56,2.25805748]
[1756710708899,3.60083546,198.59,198.56,2.25805748]
[1756710709105,102.08,198.66,198.56,2.25805748]
[1756710709306,7.43510612,198.65,198.61,1.79347707]
[1756710709503,7.43510612,198.64,198.61,1.79347707]
[1756710709708,3.6003796,198.63,198.61,1.79347707]
[1756710709913,3.6003796,198.62,198.61,1.79347707]
[1756710712707,3.6003796,198.62,198.56,2.25805748]
[1756710712909,3.6003796,198.61,198.56,2.25805748]
[1756710713109,3.6003796,198.6,198.56,2.25805748]
[1756710713309,3.6003796,198.59,198.56,2.25805748]
[1756710713610,2.25805748,198.67,198.62,1.79347707]
[1756710713809,7.43564412,198.66,198.62,1.79347707]
[1756710714011,7.43564412,198.65,198.56,2.25805748]
[1756710714212,7.43564412,198.64,198.62,1.79347707]
[1756710714406,3.60066135,198.63,198.62,1.79347707]
[1756710715912,3.60066135,198.63,198.56,2.25805748]
[1756710716114,3.60066135,198.62,198.61,1.79347707]
[1756710716709,3.60066135,198.62,198.54,2.25805748]
[1756710716914,2.25805748,198.67,198.61,1.79347707]
[1756710717104,7.43531959,198.66,198.61,1.79347707]
[1756710717311,7.43531959,198.65,198.54,2.25805748]
[1756710717510,7.43531959,198.64,198.61,1.79347707]
[1756710717815,3.60050662,198.63,198.54,2.25805748]
[1756710718014,3.60050662,198.62,198.61,1.79347707]
[1756710718314,3.60050662,198.62,198.54,2.25805748]
[1756710718614,3.60050662,198.61,198.54,2.25805748]
[1756710718814,3.60050662,198.6,198.54,2.25805748]
[1756710719014,124.3,198.66,198.62,1.79347707]
[1756710719215,7.43702809,198.65,198.62,1.79347707]
[1756710719417,3.60124365,198.64,198.62,1.79347707]
[1756710719617,3.60124365,198.63,198.54,2.25805748]
[1756710719817,3.60124365,198.62,198.54,2.25805748]
[1756710720019,3.60124365,198.61,198.54,2.25805748]
[1756710720218,3.60124365,198.6,198.54,2.25805748]
[1756710720420,3.60124365,198.59,198.53,2.25805748]
[1756710720722,2.25805748,198.64,198.58,1.79347707]
[1756710720912,7.43625351,198.63,198.59,1.79347707]
[1756710721218,3.60081292,198.62,198.53,2.25805748]
[1756710721419,3.60081292,198.61,198.57,1.79347707]
[1756710721616,7.43721506,198.6,198.57,1.79347707]
[1756710721819,3.60081292,198.59,198.57,1.79347707]
[1756710722017,3.60081292,198.58,198.57,1.79347707]
[1756710723221,3.60081292,198.65,198.57,1.79347707]
[1756710723425,2.25805748,198.63,198.57,1.79347707]
[1756710723616,3.60081292,198.62,198.57,1.79347707]
[1756710723813,2.25805748,198.6,198.48,2.25805748]
[1756710724013,3.60081292,198.59,198.57,1.79347707]
[1756710724218,3.60081292,198.58,198.57,1.79347707]
[1756710724519,3.60081292,198.58,198.48,2.25805748]
[1756710724718,2.25805748,198.6,198.48,2.25805748]
[1756710724719,3.58890067,198.57,198.48,2.25805748]
[1756710724923,3.58890067,198.56,198.45,4.5346]
[1756710725225,2.25805748,198.6,198.56,1.79347707]
[1756710725525,3.58945209,198.59,198.56,1.79347707]
[1756710725725,3.58945209,198.58,198.56,1.79347707]
[1756710725924,3.58945209,198.57,198.56,1.79347707]
[1756710729021,5.84750957,198.57,198.45,2.25805748]
[1756710729222,3.58945209,198.56,198.53,1.79347707]
[1756710729427,3.58945209,198.55,198.53,1.79347707]
[1756710729622,3.58945209,198.54,198.53,1.79347707]
[1756710730129,3.58945209,198.54,198.4,2.25805748]
[1756710730130,5.84750957,198.54,198.42,103.86482565]
[1756710730328,3.58945209,198.53,198.5,1.79347707]
[1756710730524,3.58945209,198.52,198.5,1.79347707]
[1756710730726,3.58945209,198.51,198.5,1.79347707]
[1756710731327,3.58945209,198.51,198.42,103.86482565]
[1756710731531,3.58945209,198.5,198.49,1.79347707]
[1756710732427,2.25805748,198.55,198.49,1.79347707]
[1756710732625,3.58582317,198.54,198.5,1.79347707]
[1756710732822,3.58582317,198.53,198.5,1.79347707]
[1756710733021,3.58582317,198.52,198.5,1.79347707]
[1756710733228,3.58582317,198.51,198.5,1.79347707]
[1756710734332,2.25805748,198.55,198.5,1.79347707]
[1756710734520,3.58344295,198.54,198.5,1.79347707]
[1756710734726,3.58344295,198.53,198.5,1.79347707]
[1756710734926,3.58344295,198.52,198.5,1.79347707]
[1756710735126,2.25805748,198.55,198.5,1.79347707]
[1756710735429,3.58328091,198.54,198.5,1.79347707]
[1756710735628,3.58328091,198.53,198.5,1.79347707]
[1756710735829,3.58328091,198.52,198.5,1.79347707]
[1756710736035,2.25805748,198.55,198.5,1.79347707]
[1756710736230,3.58266112,198.54,198.5,1.79347707]
[1756710736433,3.58266112,198.53,198.5,1.79347707]
[1756710736732,3.58266112,198.52,198.5,1.79347707]
[1756710736933,2.25805748,198.55,198.5,1.79347707]
[1756710737134,3.58193881,198.54,198.5,1.79347707]
[1756710737332,3.58193881,198.53,198.5,1.79347707]
[1756710737531,3.58193881,198.52,198.5,1.79347707]
[1756710737732,2.25805748,198.55,198.51,1.79347707]
[1756710737927,3.58116484,198.54,198.51,1.79347707]
[1756710738128,3.58116484,198.53,198.44,2.25805748]
[1756710738332,3.58116484,198.52,198.51,1.79347707]
[1756710738633,2.25805748,198.55,198.5,1.79347707]
[1756710738934,3.5800936,198.54,198.5,1.79347707]
[1756710739136,3.5800936,198.53,198.5,1.79347707]
[1756710739337,3.57956365,198.52,198.5,1.79347707]
[1756710739531,2.25805748,198.55,198.5,1.79347707]
[1756710739836,3.57909217,198.54,198.44,2.25805748]
[1756710740032,3.57909217,198.53,198.51,1.79347707]
[1756710740338,2.25805748,198.55,198.52,1.79347707]
[1756710740631,3.57824416,198.54,198.52,1.79347707]
[1756710740831,3.57824416,198.53,198.44,2.25805748]
[1756710741035,2.25805748,198.55,198.52,1.79347707]
[1756710741236,3.57811169,198.54,198.51,1.79347707]
[1756710741537,3.57811169,198.53,198.51,1.79347707]
[1756710741734,3.57811169,198.53,198.44,2.25805748]
[1756710741735,2.25805748,198.55,198.44,2.25805748]
[1756710742032,3.57773768,198.54,198.5,1.79347707]
[1756710742237,3.57773768,198.53,198.5,1.79347707]
[1756710742436,2.25805748,198.55,198.5,1.79347707]
[1756710742634,3.57738767,198.54,198.51,1.79347707]
[1756710742936,3.57738767,198.53,198.51,1.79347707]
[1756710743133,2.25805748,198.55,198.44,2.25805748]
[1756710743333,3.57735514,198.54,198.51,1.79347707]
[1756710743535,3.57735514,198.53,198.51,1.79347707]
[1756710743735,2.25805748,198.55,198.44,2.25805748]
[1756710743936,3.57534983,198.54,198.51,1.79347707]
[1756710744236,3.13494102,198.56,198.52,1.79347707]
[1756710744432,3.57534091,198.55,198.52,1.79347707]
[1756710744628,3.57534091,198.54,198.52,1.79347707]
[1756710744832,3.13494102,198.56,198.52,1.79347707]
[1756710745032,3.57533776,198.55,198.52,1.79347707]
[1756710745336,3.57533776,198.54,198.52,1.79347707]
[1756710745537,3.13494102,198.56,198.52,1.79347707]
[1756710745736,3.57535407,198.55,198.52,1.79347707]
[1756710745933,3.57535407,198.54,198.52,1.79347707]
[1756710746136,3.13494102,198.56,198.52,1.79347707]
[1756710746339,3.5755749,198.55,198.52,1.79347707]
[1756710746536,3.5755749,198.54,198.52,1.79347707]
[1756710746737,3.13494102,198.56,198.52,1.79347707]
[1756710746936,3.57557119,198.55,198.52,1.79347707]
[1756710747137,3.57557119,198.54,198.52,1.79347707]
[1756710747335,3.13494102,198.56,198.52,1.79347707]
[1756710747539,3.57601872,198.55,198.52,1.79347707]
[1756710747840,3.57601872,198.54,198.52,1.79347707]
[1756710748040,3.13494102,198.56,198.52,1.79347707]
[1756710748240,3.57638776,198.55,198.52,1.79347707]
[1756710748441,3.57638776,198.54,198.52,1.79347707]
[1756710748641,3.13494102,198.56,198.53,1.79347707]
[1756710748942,3.576585,198.55,198.53,1.79347707]
[1756710749240,3.576585,198.54,198.43,2.25805748]
[1756710749437,3.13494102,198.56,198.53,1.79347707]
[1756710749639,3.57685009,198.55,198.52,1.79347707]
[1756710749936,3.57685009,198.54,198.52,1.79347707]
[1756710750136,3.57709926,198.53,198.52,1.79347707]
[1756710751141,3.57709926,198.53,198.43,2.25805748]
[1756710751341,3.13494102,198.56,198.52,1.79347707]
[1756710751538,3.57741734,198.55,198.52,1.79347707]
[1756710751844,3.57741734,198.54,198.43,2.25805748]
[1756710752142,3.57741734,198.53,198.52,1.79347707]
[1756710752639,3.57741734,198.53,198.43,2.25805748]
[1756710752837,3.13494102,198.56,198.52,1.79347707]
[1756710753038,3.5772358,198.55,198.52,1.79347707]
[1756710753238,3.5772358,198.54,198.43,2.25805748]
[1756710753441,3.5772358,198.53,198.43,2.25805748]
[1756710753642,0.87688354,198.56,198.53,1.79347707]
[1756710753841,3.57744379,198.55,198.53,1.79347707]